Workbook

Sheet Sheet1
B2: メルカリ出品管理表
B3: No. | C3: 枝番 | D3: 登録 | F3: 価格変更 | G3: 売却 | K3: 確認 | O3: ID | P3: 送り状 | Q3: 県名 | R3: 郵便番号 | S3: 配達区域 | T3: 発送方法 | U3: 商品名 | V3: 文字数 | W3: 定価 | X3: 金額 | Y3: 定価% | Z3: 手数料 | AA3: 送料 | AB3: 送料の割合 | AC3: メルカリ | AD3: 箱代他 直接支払 | AE3: 利益 | AF3: 利益の割合
D4: 日付 | E4: 時刻 | F4: 予定日 | G4: 日付 | H4: 曜日 | I4: 時刻 | J4: 購入者 | K4: 日付 | L4: 時刻 | M4: いいね | N4: 閲覧数 | W4: 定価 | X4: 金額 | Z4: 手数料 | AA4: 送料 | AC4: 算出利益 | AD4: 箱代他 | AE4: 粗利
B5: 1 | C5: 0 | D5: 2020-11-01 | E5: 11:50:00 | F5: =D5+7 -> 2020-11-08 | G5: 2020-11-05 | H5: =TEXT(G5,"aaa") -> 木 | I5: 19:10:00 | O5: m01234567890 | P5: 123456789012 | Q5: 〇〇県 | R5: 〒999-9999 | S5: ＊＊＊＊＊センター | T5: 宅配便コンパクト | U5: ＊＊＊＊＊＊＊＊＊＊＊＊＊＊＊＊＊＊＊＊＊＊＊＊＊＊＊＊＊＊＊＊＊ | V5: =LEN(U5) -> 33 | W5: 4300 | X5: 2950 | Y5: =IF(W5<>"",X5/W5,"") -> 0.6860465116 | Z5: =X5*0.1 -> 295 | AA5: 380 | AB5: =AA5/X5 -> 0.1288135593 | AC5: =X5-Z5-AA5 -> 2275 | AD5: 70 | AE5: =AC5-AD5 -> 2205 | AF5: =AE5/X5 -> 0.7474576271
B6: 2 | C6: 0 | H6: =TEXT(G6,"aaa") -> 土 | T6: ネコポス | U6: ＊＊＊＊＊＊＊＊＊＊＊＊＊＊＊＊＊＊＊＊＊＊＊＊＊＊＊＊＊＊＊＊＊ | V6: =LEN(U6) -> 33 | X6: 700 | Y6: =IF(W6<>"",X6/W6,"") ->  | Z6: =X6*0.1 -> 70 | AA6: 195
B7: 2 | C7: 1 | D7: 2020-11-05 | E7: 18:00:00 | F7: =D7+7 -> 2020-11-12 | G7: 2020-11-05 | H7: 木 | I7: 20:00:00 | O7: m01234567890 | P7: 123456789012 | Q7: 〇〇県 | R7: 〒999-9999 | S7: ＊＊＊＊＊センター | T7: ネコポス | U7: ＊＊＊＊＊＊＊＊＊＊＊＊＊＊＊＊＊＊＊＊＊＊＊＊＊＊＊＊＊＊＊＊＊ | V7: 33 | X7: 500 | Y7: =IF(W7<>"",X7/W7,"") ->  | Z7: =X7*0.1 -> 50 | AA7: 175 | AB7: =AA7/X7 -> 0.35 | AC7: =X7-Z7-AA7 -> 275 | AE7: =AC7-AD7 -> 275 | AF7: =AE7/X7 -> 0.55
B8: 3 | C8: 3 | H8: 土 | U8: ＊＊＊＊＊＊＊＊＊＊＊＊＊＊＊＊＊＊＊＊＊＊＊＊＊＊＊＊＊＊＊＊＊ | V8: 33 | X8: 300 | AE8: - | AF8: -
B9: 4 | C9: 0 | H9: 土 | T9: 宅配便コンパクト | U9: ＊＊＊＊＊＊＊＊＊＊＊＊＊＊＊＊＊＊＊＊＊＊＊＊＊＊＊＊＊＊＊＊＊ | V9: =LEN(U9) -> 33 | X9: 1100 | Y9: =IF(W9<>"",X9/W9,"") ->  | Z9: =X9*0.1 -> 110 | AA9: 380 | AB9: =AA9/X9 -> 0.3454545455 | AC9: =X9-Z9-AA9 -> 610 | AD9: 70 | AE9: =AC9-AD9 -> 540 | AF9: =AE9/X9 -> 0.4909090909
B15: 合計 | V15: - | W15: - | X15: =SUMIF(G5:G14,"<>",X5:X14) -> 3450 | Z15: =SUMIF(G5:G14,"<>",Z5:Z14) -> 345 | AA15: =SUMIF(G5:G14,"<>",AA5:AA14) -> 555 | AB15: =AA15/X15 -> 0.1608695652 | AC15: =SUMIF(G5:G14,"<>",AC5:AC14) -> 2550 | AD15: =SUMIF(G5:G14,"<>",AD5:AD14) -> 70 | AE15: =SUMIF(G5:G14,"<>",AE5:AE14) -> 2480 | AF15: =AE15/X15 -> 0.7188405797
